[Event "GrandPrix_29.05"]
[Site "Chess.com"]
[Date "2020.05.29"]
[Round "8"]
[White "GMStefanova"]
[Black "bernereremit"]
[Result "1-0"]
[WhiteElo "2319"]
[BlackElo "2140"]
[TimeControl "600+2"]
[EndTime "12:57:24 PDT"]
[Termination "GMStefanova won by resignation"]

1. Nf3 {[%clk 0:09:56.3]} 1... c5 {[%clk 0:10:00.4]} 2. g3 {[%clk 0:09:56.6]}
2... Nc6 {[%clk 0:10:00.7]} 3. Bg2 {[%clk 0:09:53.7]} 3... g6 {[%clk 0:10:02.2]}
4. c3 {[%clk 0:09:49.4]} 4... Bg7 {[%clk 0:10:03]} 5. d4 {[%clk 0:09:49.5]} 5...
cxd4 {[%clk 0:09:38.3]} 6. cxd4 {[%clk 0:09:49.8]} 6... d5 {[%clk 0:09:39.7]} 7.
Nc3 {[%clk 0:09:49.2]} 7... Nf6 {[%clk 0:09:39]} 8. Ne5 {[%clk 0:09:49.2]} 8...
O-O {[%clk 0:09:35.5]} 9. Nxc6 {[%clk 0:09:45.9]} 9... bxc6 {[%clk 0:09:36.1]}
10. O-O {[%clk 0:09:45.7]} 10... Bf5 {[%clk 0:09:00.7]} 11. Re1 {[%clk
0:09:23.9]} 11... Re8 {[%clk 0:08:39.1]} 12. Bf4 {[%clk 0:09:10.8]} 12... Qa5
{[%clk 0:08:16.1]} 13. Rc1 {[%clk 0:08:41.7]} 13... Nd7 {[%clk 0:08:11.2]} 14.
Na4 {[%clk 0:07:59.8]} 14... Rac8 {[%clk 0:08:10.6]} 15. a3 {[%clk 0:07:52.6]}
15... e5 {[%clk 0:08:00.5]} 16. dxe5 {[%clk 0:07:42.3]} 16... Nxe5 {[%clk
0:08:01.2]} 17. b4 {[%clk 0:07:10.8]} 17... Qa6 {[%clk 0:07:56]} 18. Qb3 {[%clk
0:06:44]} 18... Nc4 {[%clk 0:07:22.9]} 19. e4 {[%clk 0:06:27.3]} 19... Be6
{[%clk 0:06:57.1]} 20. Bf1 {[%clk 0:06:21.6]} 20... Bg4 {[%clk 0:03:24.9]} 21.
h3 {[%clk 0:04:59]} 21... Bf3 {[%clk 0:03:24]} 22. Nc5 {[%clk 0:04:50.3]} 22...
Qxa3 {[%clk 0:03:12.7]} 23. Bxc4 {[%clk 0:04:47.9]} 23... Qxb3 {[%clk
0:03:08.9]} 24. Bxb3 {[%clk 0:04:47]} 24... dxe4 {[%clk 0:03:07.2]} 25. Nb7
{[%clk 0:04:24]} 25... Re7 {[%clk 0:02:48.5]} 26. Nd6 {[%clk 0:04:19.1]} 26...
Rd8 {[%clk 0:02:45.3]} 27. Rxc6 {[%clk 0:04:13.4]} 27... h6 {[%clk 0:02:44.2]}
28. Nxf7 {[%clk 0:03:59.7]} 28... Rxf7 {[%clk 0:02:42.9]} 29. Rc7 {[%clk
0:03:59.9]} 29... Rf8 {[%clk 0:02:40.8]} 30. Bd6 {[%clk 0:03:36.3]} 1-0

[Event "GrandPrix_29.05"]
[Site "Chess.com"]
[Date "2020.05.29"]
[Round "8"]
[White "Alex_Molchanov"]
[Black "monalize"]
[Result "0-1"]
[WhiteElo "2016"]
[BlackElo "2023"]
[TimeControl "600+2"]
[EndTime "12:57:36 PDT"]
[Termination "monalize won by resignation"]

1. e4 {[%clk 0:10:01.9]} 1... c5 {[%clk 0:10:00.3]} 2. Nf3 {[%clk 0:10:02.2]}
2... d6 {[%clk 0:09:59.8]} 3. d4 {[%clk 0:10:01.4]} 3... cxd4 {[%clk 0:10:01]}
4. Qxd4 {[%clk 0:10:02.8]} 4... a6 {[%clk 0:09:53.3]} 5. Be2 {[%clk 0:10:00.6]}
5... Nc6 {[%clk 0:09:53.3]} 6. Qe3 {[%clk 0:10:02.1]} 6... g6 {[%clk 0:09:51.2]}
7. O-O {[%clk 0:10:01.5]} 7... Bg7 {[%clk 0:09:52.1]} 8. c4 {[%clk 0:09:53.1]}
8... Nf6 {[%clk 0:09:37.4]} 9. Nc3 {[%clk 0:09:51.2]} 9... O-O {[%clk 0:09:38]}
10. h3 {[%clk 0:09:47.4]} 10... Nd7 {[%clk 0:09:12.4]} 11. b3 {[%clk 0:09:39.6]}
11... Nc5 {[%clk 0:08:11.4]} 12. Bb2 {[%clk 0:09:38.3]} 12... f5 {[%clk
0:08:05.1]} 13. exf5 {[%clk 0:09:32.9]} 13... gxf5 {[%clk 0:08:03.8]} 14. Rad1
{[%clk 0:09:00.9]} 14... Bd7 {[%clk 0:07:12.3]} 15. Qc1 {[%clk 0:08:59.1]} 15...
Rc8 {[%clk 0:06:31.4]} 16. Nd5 {[%clk 0:08:54.7]} 16... e5 {[%clk 0:06:24.4]}
17. Qg5 {[%clk 0:08:36.3]} 17... Qxg5 {[%clk 0:05:20]} 18. Nxg5 {[%clk
0:08:38.2]} 18... h6 {[%clk 0:05:20.5]} 19. Nf3 {[%clk 0:08:34.4]} 19... Be6
{[%clk 0:05:19.6]} 20. Ba3 {[%clk 0:08:04.4]} 20... Kh7 {[%clk 0:05:05.6]} 21.
Rfe1 {[%clk 0:05:51.8]} 21... Ne4 {[%clk 0:03:58.4]} 22. Nd2 {[%clk 0:05:26.8]}
22... Nc5 {[%clk 0:03:50]} 23. Bb2 {[%clk 0:04:35.4]} 23... Bxd5 {[%clk
0:02:21.2]} 24. cxd5 {[%clk 0:04:37.3]} 24... Nb4 {[%clk 0:02:22.6]} 25. a3
{[%clk 0:04:16.1]} 25... Nbd3 {[%clk 0:02:21.2]} 26. Nc4 {[%clk 0:04:05.1]}
26... Nxe1 {[%clk 0:02:19.3]} 27. Nxd6 {[%clk 0:03:58.5]} 27... Nc2 {[%clk
0:02:07.1]} 28. Nxc8 {[%clk 0:03:55.7]} 28... Rxc8 {[%clk 0:02:07.4]} 29. Bd3
{[%clk 0:03:49.1]} 29... Nxd3 {[%clk 0:02:07]} 30. Rxd3 {[%clk 0:03:48.8]} 30...
e4 {[%clk 0:02:05.5]} 0-1

[Event "GrandPrix_29.05"]
[Site "Chess.com"]
[Date "2020.05.29"]
[Round "8"]
[White "A_N_D-R_E_I"]
[Black "Iljin_Timofey"]
[Result "0-1"]
[WhiteElo "2068"]
[BlackElo "2262"]
[TimeControl "600+2"]
[EndTime "12:57:47 PDT"]
[Termination "Iljin_Timofey won by checkmate"]

1. e4 {[%clk 0:10:01.9]} 1... c5 {[%clk 0:10:00.3]} 2. Nf3 {[%clk 0:10:01.8]}
2... Nc6 {[%clk 0:10:01.2]} 3. Bb5 {[%clk 0:10:02.3]} 3... e6 {[%clk 0:10:01.7]}
4. Bxc6 {[%clk 0:10:03.2]} 4... bxc6 {[%clk 0:10:03.6]} 5. d3 {[%clk 0:10:04]}
5... Ne7 {[%clk 0:10:05.4]} 6. Nh4 {[%clk 0:10:04.9]} 6... d5 {[%clk 0:09:44.5]}
7. Qe2 {[%clk 0:10:04.7]} 7... Ng6 {[%clk 0:09:44.5]} 8. Nxg6 {[%clk 0:10:04.2]}
8... hxg6 {[%clk 0:09:46.4]} 9. h3 {[%clk 0:09:47.9]} 9... Bd6 {[%clk
0:09:21.4]} 10. c4 {[%clk 0:09:47.7]} 10... dxc4 {[%clk 0:09:06.1]} 11. dxc4
{[%clk 0:09:48.5]} 11... Be5 {[%clk 0:09:07.3]} 12. Nd2 {[%clk 0:09:02.3]} 12...
Bd4 {[%clk 0:08:54.9]} 13. Rb1 {[%clk 0:08:52]} 13... e5 {[%clk 0:08:56.8]} 14.
Nf3 {[%clk 0:08:39.5]} 14... Bg4 {[%clk 0:08:56.7]} 15. O-O {[%clk 0:08:29.3]}
15... Qh4 {[%clk 0:08:06.2]} 16. b3 {[%clk 0:06:18.9]} 16... Qh5 {[%clk
0:07:38.8]} 17. Rd1 {[%clk 0:04:31]} 17... O-O-O {[%clk 0:06:34.8]} 18. Be3
{[%clk 0:02:13]} 18... Bxf3 {[%clk 0:06:23.5]} 19. Qxf3 {[%clk 0:02:10.3]} 19...
Qxf3 {[%clk 0:06:24.5]} 20. gxf3 {[%clk 0:02:11.2]} 20... Rxh3 {[%clk 0:06:26]}
21. Kg2 {[%clk 0:02:12.2]} 21... Rdh8 {[%clk 0:06:25.2]} 22. Rh1 {[%clk
0:02:12]} 22... Rxh1 {[%clk 0:06:25.5]} 23. Rxh1 {[%clk 0:02:13.9]} 23... Rxh1
{[%clk 0:06:26.7]} 24. Kxh1 {[%clk 0:02:15.8]} 24... Bxe3 {[%clk 0:06:22.5]} 25.
fxe3 {[%clk 0:02:17.7]} 25... f5 {[%clk 0:06:23.5]} 26. Kg2 {[%clk 0:02:10.9]}
26... fxe4 {[%clk 0:06:15.2]} 27. fxe4 {[%clk 0:02:09.3]} 27... Kd7 {[%clk
0:06:17.1]} 28. Kg3 {[%clk 0:02:10]} 28... Ke6 {[%clk 0:06:19]} 29. Kg4 {[%clk
0:02:10.2]} 29... Kf6 {[%clk 0:06:19.7]} 30. Kh4 {[%clk 0:02:09.5]} 30... g5+
{[%clk 0:06:07.2]} 31. Kh5 {[%clk 0:02:09.6]} 31... a6 {[%clk 0:06:04.2]} 32. a3
{[%clk 0:02:08.1]} 32... a5 {[%clk 0:06:03.4]} 33. a4 {[%clk 0:02:08.4]} 33...
g4 {[%clk 0:05:27.6]} 34. Kxg4 {[%clk 0:02:07.7]} 34... Kg6 {[%clk 0:05:28.8]}
35. Kh4 {[%clk 0:02:04.9]} 35... Kh6 {[%clk 0:05:29.8]} 36. Kg4 {[%clk 0:02:06]}
36... g6 {[%clk 0:05:30]} 37. Kh4 {[%clk 0:01:56.5]} 37... g5+ {[%clk
0:05:30.4]} 38. Kg4 {[%clk 0:01:42.6]} 38... Kg6 {[%clk 0:05:30.7]} 39. Kg3
{[%clk 0:01:44.1]} 39... Kh5 {[%clk 0:05:31.4]} 40. Kh3 {[%clk 0:01:45.3]} 40...
g4+ {[%clk 0:05:32]} 41. Kg3 {[%clk 0:01:45.1]} 41... Kg5 {[%clk 0:05:32.6]} 42.
Kg2 {[%clk 0:01:30]} 42... Kh4 {[%clk 0:05:34.5]} 43. Kh2 {[%clk 0:01:31.2]}
43... g3+ {[%clk 0:05:35.2]} 44. Kg2 {[%clk 0:01:32.2]} 44... Kg4 {[%clk
0:05:37.1]} 45. Kg1 {[%clk 0:01:33.1]} 45... Kf3 {[%clk 0:05:38]} 46. Kf1 {[%clk
0:01:34.1]} 46... g2+ {[%clk 0:05:35.3]} 47. Kg1 {[%clk 0:01:35.1]} 47... Kg3
{[%clk 0:05:36.5]} 48. b4 {[%clk 0:01:34.1]} 48... axb4 {[%clk 0:05:38.4]} 49.
a5 {[%clk 0:01:34.9]} 49... b3 {[%clk 0:05:40.3]} 50. a6 {[%clk 0:01:36.1]}
50... b2 {[%clk 0:05:42.2]} 51. a7 {[%clk 0:01:37.4]} 51... b1=Q# {[%clk
0:05:44.1]} 0-1

[Event "GrandPrix_29.05"]
[Site "Chess.com"]
[Date "2020.05.29"]
[Round "8"]
[White "LorisinoC"]
[Black "Natalya_Buksa"]
[Result "1/2-1/2"]
[WhiteElo "2021"]
[BlackElo "2085"]
[TimeControl "600+2"]
[EndTime "12:57:48 PDT"]
[Termination "Game drawn by agreement"]

1. e4 {[%clk 0:10:01.9]} 1... c5 {[%clk 0:09:58.7]} 2. Nf3 {[%clk 0:10:01.4]}
2... Nc6 {[%clk 0:09:59.3]} 3. Bb5 {[%clk 0:09:59.6]} 3... g6 {[%clk 0:09:59.3]}
4. Bxc6 {[%clk 0:09:57.2]} 4... bxc6 {[%clk 0:09:59.1]} 5. d4 {[%clk 0:09:51]}
5... Bg7 {[%clk 0:09:47]} 6. dxc5 {[%clk 0:09:51]} 6... Qa5+ {[%clk 0:09:37.6]}
7. Nbd2 {[%clk 0:09:51]} 7... Ba6 {[%clk 0:09:32.6]} 8. a3 {[%clk 0:09:20.3]}
8... Qxc5 {[%clk 0:09:31.8]} 9. c4 {[%clk 0:09:12.1]} 9... Bxc4 {[%clk
0:08:51.4]} 10. Qc2 {[%clk 0:09:10.8]} 10... d5 {[%clk 0:08:51.4]} 11. e5 {[%clk
0:09:10.1]} 11... Qb5 {[%clk 0:08:28.6]} 12. Nxc4 {[%clk 0:09:00.2]} 12... dxc4
{[%clk 0:08:19.2]} 13. O-O {[%clk 0:08:56.1]} 13... Nh6 {[%clk 0:08:19.7]} 14.
Bxh6 {[%clk 0:08:30.5]} 14... Bxh6 {[%clk 0:08:20.1]} 15. e6 {[%clk 0:08:21.1]}
15... f6 {[%clk 0:07:55.8]} 16. Rad1 {[%clk 0:08:14.6]} 16... O-O {[%clk
0:07:39.7]} 17. Rd7 {[%clk 0:08:14.9]} 17... Rfe8 {[%clk 0:07:39.1]} 18. Nd4
{[%clk 0:07:59.4]} 18... Qa6 {[%clk 0:07:04.7]} 19. Qe4 {[%clk 0:07:59.4]} 19...
Rac8 {[%clk 0:06:02.3]} 20. Rd1 {[%clk 0:07:37.1]} 20... Qb6 {[%clk 0:05:42.8]}
21. Nf3 {[%clk 0:06:52.1]} 21... Qxb2 {[%clk 0:05:13.1]} 22. Qxc4 {[%clk
0:06:46.7]} 22... Qxa3 {[%clk 0:05:13.8]} 23. Nd4 {[%clk 0:06:43.5]} 23... c5
{[%clk 0:05:02.3]} 24. Nb5 {[%clk 0:06:43.9]} 24... Qb4 {[%clk 0:04:44.9]} 25.
Qxb4 {[%clk 0:06:31.5]} 25... cxb4 {[%clk 0:04:45.5]} 26. Nc7 {[%clk 0:06:32.3]}
26... Rxc7 {[%clk 0:02:07.2]} 27. Rxc7 {[%clk 0:06:34.2]} 27... Rb8 {[%clk
0:02:08.1]} 28. Rxe7 {[%clk 0:06:26.9]} 28... b3 {[%clk 0:02:08]} 29. Rxa7
{[%clk 0:06:08.8]} 29... b2 {[%clk 0:02:08.7]} 30. Rb1 {[%clk 0:06:08.5]} 30...
Rc8 {[%clk 0:01:53.9]} 31. Rf1 {[%clk 0:04:56.1]} 31... Rb8 {[%clk 0:01:30.1]}
32. Rb1 {[%clk 0:04:55.9]} 1/2-1/2

[Event "GrandPrix_29.05"]
[Site "Chess.com"]
[Date "2020.05.29"]
[Round "8"]
[White "Micki-taryan"]
[Black "Armen_Barseghyan"]
[Result "1-0"]
[WhiteElo "2524"]
[BlackElo "2352"]
[TimeControl "600+2"]
[EndTime "12:57:51 PDT"]
[Termination "Micki-taryan won by resignation"]

1. d4 {[%clk 0:10:00.4]} 1... Nf6 {[%clk 0:10:00.5]} 2. Nf3 {[%clk 0:10:01]}
2... g6 {[%clk 0:10:01.1]} 3. Nc3 {[%clk 0:10:01.6]} 3... d5 {[%clk 0:10:00.9]}
4. Bf4 {[%clk 0:10:02.8]} 4... Bg7 {[%clk 0:10:01.3]} 5. Nb5 {[%clk 0:10:04.3]}
5... Na6 {[%clk 0:10:01.6]} 6. e3 {[%clk 0:10:05.9]} 6... O-O {[%clk 0:10:02]}
7. Be2 {[%clk 0:10:06.8]} 7... c6 {[%clk 0:09:51.3]} 8. Nc3 {[%clk 0:10:08.2]}
8... Nc7 {[%clk 0:09:49.7]} 9. h4 {[%clk 0:10:09.7]} 9... Bg4 {[%clk 0:09:40.9]}
10. Ne5 {[%clk 0:10:10]} 10... Bxe2 {[%clk 0:09:37.7]} 11. Qxe2 {[%clk
0:10:11.9]} 11... Ne6 {[%clk 0:09:33.7]} 12. g4 {[%clk 0:10:10.4]} 12... c5
{[%clk 0:09:17.6]} 13. dxc5 {[%clk 0:10:08.6]} 13... d4 {[%clk 0:08:33.8]} 14.
O-O-O {[%clk 0:10:10]} 14... Qa5 {[%clk 0:08:32.6]} 15. Rxd4 {[%clk 0:10:10]}
15... Nxd4 {[%clk 0:08:31.3]} 16. exd4 {[%clk 0:10:11.9]} 16... Rad8 {[%clk
0:08:21.4]} 17. Be3 {[%clk 0:10:09]} 17... Nd5 {[%clk 0:08:15.9]} 18. Nxd5
{[%clk 0:10:00.5]} 18... Rxd5 {[%clk 0:08:16.3]} 19. Qc4 {[%clk 0:09:48.9]}
19... e6 {[%clk 0:07:50.7]} 20. f4 {[%clk 0:09:44.7]} 20... Rc8 {[%clk
0:07:33.2]} 21. a3 {[%clk 0:09:04.9]} 21... b6 {[%clk 0:07:03.9]} 22. Bd2 {[%clk
0:09:05.7]} 22... Rcxc5 {[%clk 0:04:50.9]} 23. Bxa5 {[%clk 0:09:05.7]} 23...
Rxc4 {[%clk 0:04:49.6]} 24. Nxc4 {[%clk 0:09:07.6]} 24... bxa5 {[%clk
0:04:48.7]} 25. c3 {[%clk 0:09:07.1]} 25... a4 {[%clk 0:04:47]} 26. Kc2 {[%clk
0:09:00.5]} 26... h5 {[%clk 0:04:46.8]} 27. Ne3 {[%clk 0:09:01]} 27... Rb5
{[%clk 0:04:43.6]} 28. g5 {[%clk 0:09:01.7]} 28... Bf8 {[%clk 0:04:42.6]} 29.
Nc4 {[%clk 0:08:48.2]} 29... Be7 {[%clk 0:04:37.8]} 30. Kd3 {[%clk 0:08:48.5]}
30... Bd8 {[%clk 0:04:36.6]} 31. Rh2 {[%clk 0:08:46.7]} 31... Bc7 {[%clk
0:04:35.7]} 32. Ke4 {[%clk 0:08:47.6]} 32... Kf8 {[%clk 0:04:28.8]} 33. Rf2
{[%clk 0:08:44.7]} 33... Ke7 {[%clk 0:04:28.6]} 34. Ne5 {[%clk 0:08:45.6]} 34...
a6 {[%clk 0:04:24.5]} 35. Nc6+ {[%clk 0:08:43.4]} 35... Kd7 {[%clk 0:04:20.1]}
36. Nb4 {[%clk 0:08:45.3]} 36... a5 {[%clk 0:04:06.3]} 37. Nd3 {[%clk 0:08:46]}
37... Ke7 {[%clk 0:04:00.9]} 38. Nc5 {[%clk 0:08:45]} 38... f6 {[%clk
0:03:40.7]} 39. gxf6+ {[%clk 0:08:33.7]} 39... Kxf6 {[%clk 0:03:41.3]} 40. Nxa4
{[%clk 0:08:33.7]} 40... Kf7 {[%clk 0:03:32.7]} 41. Nc5 {[%clk 0:08:27.4]} 41...
Bd8 {[%clk 0:03:32.6]} 42. Rh2 {[%clk 0:08:29]} 42... Be7 {[%clk 0:03:28.7]} 43.
Nd3 {[%clk 0:08:08.6]} 43... a4 {[%clk 0:03:19.5]} 44. Ne5+ {[%clk 0:08:07.5]}
44... Kg7 {[%clk 0:03:17.6]} 45. Nf3 {[%clk 0:08:02.8]} 45... Bf6 {[%clk
0:03:09.2]} 46. Re2 {[%clk 0:07:59.2]} 46... Kf7 {[%clk 0:03:07.8]} 47. Ng5+
{[%clk 0:07:58.3]} 47... Bxg5 {[%clk 0:03:08.1]} 48. fxg5 {[%clk 0:07:59.7]}
48... Rf5 {[%clk 0:03:07.2]} 49. Ke3 {[%clk 0:07:58.4]} 49... Ke7 {[%clk
0:02:56.8]} 50. Rf2 {[%clk 0:07:52.9]} 50... Rb5 {[%clk 0:02:57.3]} 51. Kd3
{[%clk 0:07:50.5]} 51... Kd6 {[%clk 0:02:48.9]} 52. Kc2 {[%clk 0:07:38.8]} 52...
Rf5 {[%clk 0:02:48.9]} 53. Rxf5 {[%clk 0:07:35.5]} 53... exf5 {[%clk 0:02:49.4]}
54. b3 {[%clk 0:07:34.5]} 54... axb3+ {[%clk 0:02:38.1]} 55. Kxb3 {[%clk
0:07:36.4]} 55... Kd5 {[%clk 0:02:38.8]} 56. Kc2 {[%clk 0:07:37.1]} 56... Ke4
{[%clk 0:01:47.1]} 57. a4 {[%clk 0:07:38.1]} 57... f4 {[%clk 0:01:24]} 58. a5
{[%clk 0:07:39.4]} 58... Ke3 {[%clk 0:01:03]} 59. a6 {[%clk 0:07:40.2]} 59... f3
{[%clk 0:00:43.2]} 60. a7 {[%clk 0:07:42.1]} 60... f2 {[%clk 0:00:44.3]} 61.
a8=Q {[%clk 0:07:44]} 61... f1=Q {[%clk 0:00:45.4]} 62. Qe8+ {[%clk 0:07:45.9]}
1-0

[Event "GrandPrix_29.05"]
[Site "Chess.com"]
[Date "2020.05.29"]
[Round "8"]
[White "N4700000"]
[Black "abraham1982"]
[Result "1-0"]
[WhiteElo "2364"]
[BlackElo "2169"]
[TimeControl "600+2"]
[EndTime "12:57:57 PDT"]
[Termination "N4700000 won by resignation"]

1. e4 {[%clk 0:10:01.9]} 1... c5 {[%clk 0:09:58]} 2. Nf3 {[%clk 0:10:02.3]} 2...
e6 {[%clk 0:09:55.7]} 3. c4 {[%clk 0:10:01.5]} 3... Nc6 {[%clk 0:09:43.3]} 4.
Nc3 {[%clk 0:10:02.1]} 4... Nd4 {[%clk 0:09:40.4]} 5. Be2 {[%clk 0:10:00.4]}
5... Ne7 {[%clk 0:09:37.5]} 6. O-O {[%clk 0:09:59.3]} 6... Nec6 {[%clk
0:09:37.2]} 7. d3 {[%clk 0:09:58.2]} 7... Be7 {[%clk 0:09:36.5]} 8. Nxd4 {[%clk
0:09:52.6]} 8... cxd4 {[%clk 0:09:32.2]} 9. Nb1 {[%clk 0:09:52.3]} 9... O-O
{[%clk 0:09:29]} 10. f4 {[%clk 0:09:51.6]} 10... d5 {[%clk 0:09:27.2]} 11. cxd5
{[%clk 0:09:48.7]} 11... exd5 {[%clk 0:09:26]} 12. e5 {[%clk 0:09:49]} 12... f6
{[%clk 0:09:25.5]} 13. exf6 {[%clk 0:09:48.3]} 13... Bxf6 {[%clk 0:09:25.6]} 14.
Nd2 {[%clk 0:09:46.5]} 14... Bf5 {[%clk 0:09:19]} 15. Nf3 {[%clk 0:09:43.2]}
15... Rc8 {[%clk 0:09:16.1]} 16. a3 {[%clk 0:09:26.7]} 16... Re8 {[%clk
0:09:13.4]} 17. Re1 {[%clk 0:09:25.3]} 17... a5 {[%clk 0:09:02.6]} 18. Bf1
{[%clk 0:09:23.7]} 18... Rxe1 {[%clk 0:08:56]} 19. Qxe1 {[%clk 0:09:22.9]} 19...
Qb6 {[%clk 0:08:53.4]} 20. h3 {[%clk 0:08:51.6]} 20... h5 {[%clk 0:08:48.2]} 21.
Ng5 {[%clk 0:08:42]} 21... a4 {[%clk 0:08:00.1]} 22. Qh4 {[%clk 0:08:38.9]}
22... Bg6 {[%clk 0:07:49]} 23. f5 {[%clk 0:08:33.3]} 23... Be8 {[%clk
0:07:46.4]} 24. Bf4 {[%clk 0:08:06.2]} 24... Ne7 {[%clk 0:07:35.8]} 25. Re1
{[%clk 0:07:50.9]} 25... Qxb2 {[%clk 0:05:46.1]} 26. g4 {[%clk 0:07:09.9]} 26...
Qb5 {[%clk 0:04:29.2]} 27. Qg3 {[%clk 0:06:47.6]} 27... Qd7 {[%clk 0:03:23.2]}
28. Ne6 {[%clk 0:06:33.3]} 28... Bf7 {[%clk 0:03:19.3]} 29. Qf2 {[%clk
0:05:57.2]} 29... Ng6 {[%clk 0:02:02.2]} 30. Bg3 {[%clk 0:05:37.1]} 30... h4
{[%clk 0:01:33.4]} 31. Bh2 {[%clk 0:05:34.1]} 31... Nf8 {[%clk 0:01:12.3]} 32.
g5 {[%clk 0:05:27.6]} 32... Be7 {[%clk 0:00:59.3]} 33. Nxf8 {[%clk 0:05:25.4]}
33... Bxf8 {[%clk 0:00:55.5]} 34. g6 {[%clk 0:05:22.4]} 34... Be8 {[%clk
0:00:54.5]} 35. Qxh4 {[%clk 0:05:21.9]} 1-0

[Event "GrandPrix_29.05"]
[Site "Chess.com"]
[Date "2020.05.29"]
[Round "8"]
[White "vagpat"]
[Black "PresidenteMNE"]
[Result "1-0"]
[WhiteElo "2217"]
[BlackElo "2275"]
[TimeControl "600+2"]
[EndTime "12:58:19 PDT"]
[Termination "vagpat won by resignation"]

1. e4 {[%clk 0:10:01.9]} 1... d5 {[%clk 0:09:57.2]} 2. exd5 {[%clk 0:10:02.4]}
2... Nf6 {[%clk 0:09:58.3]} 3. d4 {[%clk 0:10:00.8]} 3... Bg4 {[%clk 0:09:58.5]}
4. Be2 {[%clk 0:09:53.4]} 4... Bxe2 {[%clk 0:09:58]} 5. Qxe2 {[%clk 0:09:47.2]}
5... Qxd5 {[%clk 0:09:59.6]} 6. Nf3 {[%clk 0:09:48.1]} 6... e6 {[%clk
0:09:59.7]} 7. O-O {[%clk 0:09:48.5]} 7... c6 {[%clk 0:09:52.9]} 8. c4 {[%clk
0:09:48.5]} 8... Qh5 {[%clk 0:09:52.7]} 9. Bf4 {[%clk 0:09:40.7]} 9... Nbd7
{[%clk 0:09:53.5]} 10. Nc3 {[%clk 0:09:37.5]} 10... Be7 {[%clk 0:09:53.9]} 11.
Rad1 {[%clk 0:09:32.4]} 11... O-O {[%clk 0:09:52.9]} 12. d5 {[%clk 0:09:21]}
12... Qf5 {[%clk 0:08:20.5]} 13. dxc6 {[%clk 0:08:29.4]} 13... Qxf4 {[%clk
0:08:03.7]} 14. cxd7 {[%clk 0:08:28.3]} 14... Rfd8 {[%clk 0:08:03.2]} 15. Ne5
{[%clk 0:08:11.8]} 15... h5 {[%clk 0:07:04.9]} 16. h3 {[%clk 0:08:03.2]} 16...
h4 {[%clk 0:07:04.6]} 17. Rfe1 {[%clk 0:08:01]} 17... Bc5 {[%clk 0:06:54.4]} 18.
a3 {[%clk 0:06:36]} 18... a5 {[%clk 0:06:49.8]} 19. Nb5 {[%clk 0:06:11.8]} 19...
Ra6 {[%clk 0:06:49.5]} 20. b3 {[%clk 0:05:54.3]} 20... Kf8 {[%clk 0:06:38.5]}
21. Nd3 {[%clk 0:05:08.4]} 21... Qg5 {[%clk 0:06:28.5]} 22. b4 {[%clk
0:05:09.1]} 22... axb4 {[%clk 0:06:28.1]} 23. axb4 {[%clk 0:05:11]} 23... Be7
{[%clk 0:06:12]} 24. c5 {[%clk 0:04:28.8]} 24... Rxd7 {[%clk 0:06:12.3]} 25. Ne5
{[%clk 0:04:27.3]} 25... Rxd1 {[%clk 0:06:12]} 26. Rxd1 {[%clk 0:04:27.8]} 26...
g6 {[%clk 0:05:42.8]} 27. Nc7 {[%clk 0:04:08.2]} 27... Ra3 {[%clk 0:05:29.3]}
28. Re1 {[%clk 0:03:34.8]} 28... Rxh3 {[%clk 0:05:15.3]} 29. Nxf7 {[%clk
0:03:26.6]} 29... Kxf7 {[%clk 0:04:19.7]} 30. Qxe6+ {[%clk 0:03:25.6]} 30... Kg7
{[%clk 0:04:20.9]} 31. Qxh3 {[%clk 0:03:12.7]} 31... Kh6 {[%clk 0:04:13.3]} 32.
Ne6 {[%clk 0:02:50.6]} 32... Qd2 {[%clk 0:04:05.7]} 33. Qxh4+ {[%clk 0:02:38.4]}
33... Nh5 {[%clk 0:04:06.5]} 34. Qe4 {[%clk 0:02:39.8]} 34... Qb2 {[%clk
0:03:43.2]} 35. Qd4 {[%clk 0:02:28.4]} 35... Qxd4 {[%clk 0:03:36.8]} 36. Nxd4
{[%clk 0:02:28.9]} 36... Bf6 {[%clk 0:03:38.7]} 37. Ne6 {[%clk 0:02:26.1]} 37...
Bc3 {[%clk 0:03:36.9]} 38. Rc1 {[%clk 0:02:25.3]} 38... Bxb4 {[%clk 0:03:37.1]}
39. Rb1 {[%clk 0:02:26.3]} 39... Be1 {[%clk 0:03:30.8]} 40. Rxe1 {[%clk
0:02:25.9]} 40... Nf6 {[%clk 0:03:32.7]} 1-0

[Event "GrandPrix_29.05"]
[Site "Chess.com"]
[Date "2020.05.29"]
[Round "8"]
[White "SipkeErnst"]
[Black "AsadliVugar"]
[Result "0-1"]
[WhiteElo "2154"]
[BlackElo "2436"]
[TimeControl "600+2"]
[EndTime "12:58:22 PDT"]
[Termination "AsadliVugar won by resignation"]

1. d4 {[%clk 0:10:01.9]} 1... Nf6 {[%clk 0:10:00.3]} 2. c4 {[%clk 0:10:01.2]}
2... e6 {[%clk 0:10:01.3]} 3. g3 {[%clk 0:10:00.7]} 3... d5 {[%clk 0:10:01.5]}
4. Nf3 {[%clk 0:10:00.9]} 4... Bb4+ {[%clk 0:10:02.4]} 5. Bd2 {[%clk 0:10:00.2]}
5... Be7 {[%clk 0:10:03.4]} 6. Bg2 {[%clk 0:10:00.8]} 6... c6 {[%clk 0:10:04]}
7. O-O {[%clk 0:09:59.6]} 7... O-O {[%clk 0:10:05.3]} 8. Qc2 {[%clk 0:09:59.7]}
8... b6 {[%clk 0:10:06.4]} 9. Rd1 {[%clk 0:10:00]} 9... Bb7 {[%clk 0:10:06.7]}
10. b3 {[%clk 0:09:57.9]} 10... Nbd7 {[%clk 0:09:53.7]} 11. Bc3 {[%clk
0:09:46.8]} 11... Ne4 {[%clk 0:09:49.8]} 12. Bb2 {[%clk 0:09:17.6]} 12... Rc8
{[%clk 0:09:43.7]} 13. Nc3 {[%clk 0:09:16]} 13... f5 {[%clk 0:09:40.2]} 14. e3
{[%clk 0:08:32.3]} 14... Qe8 {[%clk 0:09:08.9]} 15. a4 {[%clk 0:08:14.6]} 15...
a5 {[%clk 0:08:56.5]} 16. Ba3 {[%clk 0:07:52.7]} 16... Bb4 {[%clk 0:08:48.8]}
17. Ne2 {[%clk 0:07:46.4]} 17... c5 {[%clk 0:08:45.1]} 18. Bxb4 {[%clk
0:07:45.5]} 18... axb4 {[%clk 0:08:45.5]} 19. a5 {[%clk 0:07:42.7]} 19... cxd4
{[%clk 0:08:36.7]} 20. Nfxd4 {[%clk 0:07:27.2]} 20... dxc4 {[%clk 0:08:07.7]}
21. bxc4 {[%clk 0:07:25.5]} 21... Bd5 {[%clk 0:08:07.1]} 22. Qb2 {[%clk
0:07:03.2]} 22... Bxc4 {[%clk 0:08:04.6]} 23. a6 {[%clk 0:06:17.3]} 23... Ndf6
{[%clk 0:07:15.5]} 24. a7 {[%clk 0:06:00.6]} 24... Nd5 {[%clk 0:07:15.2]} 25.
a8=Q {[%clk 0:04:27]} 25... Rxa8 {[%clk 0:07:14.4]} 26. Rxa8 {[%clk 0:04:28.4]}
26... Qxa8 {[%clk 0:07:16]} 27. Nxe6 {[%clk 0:04:29.6]} 27... Rf7 {[%clk
0:07:06.1]} 28. N2f4 {[%clk 0:04:30.2]} 28... h6 {[%clk 0:06:28.1]} 29. Qe5
{[%clk 0:04:07.8]} 29... Nxf4 {[%clk 0:06:14]} 30. gxf4 {[%clk 0:02:23.4]} 30...
Re7 {[%clk 0:05:26.9]} 31. Bxe4 {[%clk 0:02:24]} 31... fxe4 {[%clk 0:05:17.3]}
32. f5 {[%clk 0:02:24.7]} 32... b3 {[%clk 0:04:56.3]} 33. Qd6 {[%clk 0:02:10]}
33... Qe8 {[%clk 0:04:41.6]} 34. Qxb6 {[%clk 0:01:58.4]} 34... Rxe6 {[%clk
0:04:24.3]} 35. fxe6 {[%clk 0:01:58.7]} 35... Qg6+ {[%clk 0:04:25.2]} 36. Kh1
{[%clk 0:01:58.8]} 36... Be2 {[%clk 0:04:26.4]} 37. Qb8+ {[%clk 0:01:49.5]}
37... Kh7 {[%clk 0:04:26.4]} 38. Qg3 {[%clk 0:01:22.5]} 38... Bf3+ {[%clk
0:04:22.5]} 0-1